bitfinex-derivatives/quotes_BTCF0:USTF0_20250827
["timestamp","ask_amount","ask_price","bid_price","bid_amount"]
[1756329488006,0.68976844,112010.0,112000.0,0.1713]
[1756329488907,1.05056844,112010.0,112000.0,0.1713]
[1756329489107,0.65703712,112010.0,112000.0,0.1713]
[1756329489507,0.68976844,112010.0,112000.0,0.1713]
[1756329490205,0.29623712,112010.0,112000.0,0.1713]
[1756329490404,0.68976844,112010.0,112000.0,0.1713]
[1756329491508,0.2612249,112000.0,111990.0,1.36916]
[1756329491704,0.2612249,112000.0,111990.0,1.36906]
[1756329492209,0.68067017,112000.0,111990.0,0.50397]
[1756329492403,0.28713885,112000.0,111990.0,0.50397]
[1756329492606,0.68067017,112000.0,111990.0,0.5321]
[1756329492807,0.68067017,112000.0,111990.0,0.50397]
[1756329493206,0.68067017,112000.0,111990.0,0.5321]
[1756329493904,1.04147017,112000.0,111990.0,0.1713]
[1756329494105,1.04147017,112000.0,111990.0,0.1723]
[1756329494306,1.04147017,112000.0,111990.0,0.001]
[1756329494507,1.04147017,112000.0,111990.0,0.003]
[1756329494807,1.11232741,112000.0,111990.0,0.002]
[1756329495307,0.2612329,111990.0,111980.0,1.00812]
[1756329495506,0.28714685,111990.0,111980.0,1.00802]
[1756329496002,0.68067817,111990.0,111980.0,1.00802]
[1756329496198,0.68067817,111990.0,111980.0,0.09094]
[1756329496406,0.68067817,111990.0,111980.0,1.00754]
[1756329496607,0.28714685,111990.0,111980.0,1.00754]
[1756329496910,0.68067817,111990.0,111980.0,1.00754]
[1756329497701,0.68067817,111990.0,111980.0,0.1713]
[1756329498314,1.04147817,111990.0,111980.0,0.04786]
[1756329498609,1.04147817,111990.0,111980.0,0.02655]
[1756329499012,1.04147817,111990.0,111970.0,1.30048]
[1756329499013,0.0892909,111980.0,111970.0,1.30048]
[1756329499314,0.61012617,111980.0,111970.0,1.30038]
[1756329499713,0.62973703,111980.0,111970.0,1.30038]
[1756329499914,0.62973703,111980.0,111970.0,1.30048]
[1756329500513,0.62973703,111980.0,111970.0,1.30248]
[1756329501115,0.70029703,111980.0,111970.0,1.36984]
[1756329502510,0.30676571,111980.0,111970.0,1.36884]
[1756329502711,0.70029703,111980.0,111970.0,1.36884]
[1756329502908,0.70029703,111980.0,111970.0,1.33659]
[1756329503104,0.27381571,111980.0,111970.0,1.36904]
[1756329503310,0.30676571,111980.0,111970.0,1.36904]
[1756329504616,0.19560571,111980.0,111970.0,1.76257132]
[1756329504822,0.23620571,111980.0,111970.0,1.36904]
[1756329505117,0.70029703,111980.0,111970.0,0.5332]
[1756329505416,0.70029703,111980.0,111970.0,1.37004]
[1756329505612,0.66734703,111980.0,111970.0,1.37004]
[1756329505817,0.30676571,111980.0,111970.0,1.37004]
[1756329507717,0.70029703,111980.0,111970.0,1.37004]
[1756329508918,0.18226571,111980.0,111970.0,1.76357132]
[1756329510016,0.13481551,111980.0,111970.0,1.85286992]
[1756329510219,0.13481551,111980.0,111970.0,2.10286992]
[1756329510416,0.08747551,111980.0,111970.0,2.10286992]
[1756329511011,0.0893835,111990.0,111970.0,2.10286992]
[1756329511229,0.1173335,111990.0,111980.0,0.82476132]
[1756329511415,0.1172335,111990.0,111980.0,0.82486132]
[1756329512124,0.1172335,111990.0,111980.0,0.43133]
[1756329512325,0.1172335,111990.0,111980.0,0.82486132]
[1756329513819,0.1182335,111990.0,111980.0,0.82486132]
[1756329514018,0.1458235,111990.0,111980.0,0.43133]
[1756329514218,0.1458235,111990.0,111980.0,1.66066132]
[1756329514423,0.2212935,111990.0,111980.0,1.66066132]
[1756329514922,0.2628235,111990.0,111980.0,0.43133]
[1756329515111,0.65635482,111990.0,111980.0,0.07053]
[1756329515311,0.65635482,111990.0,111980.0,0.90633]
[1756329515513,0.65635482,111990.0,111980.0,0.87605]
[1756329515719,0.65635482,111990.0,111980.0,0.02147]
[1756329515920,0.65635482,111990.0,111980.0,0.0001]
[1756329516420,0.90635482,111990.0,111980.0,0.0001]
[1756329516626,0.95418857,111990.0,111980.0,0.0001]
[1756329516823,1.31498857,111990.0,111980.0,0.0001]
[1756329520524,2.15078857,111990.0,111980.0,0.0001]
[1756329521724,0.65536202,111980.0,111970.0,0.0001]
[1756329521929,0.1584187,111970.0,111960.0,1.25047]
[1756329522115,0.1584187,111970.0,111960.0,0.40095]
[1756329522116,0.65537002,111970.0,111960.0,0.40095]
[1756329522322,0.65537002,111970.0,111960.0,0.02137]
[1756329522525,0.68101411,111970.0,111960.0,0.02137]
[1756329522725,0.0893066,111960.0,111950.0,1.21016]
[1756329522924,0.68102201,111960.0,111950.0,1.25037]
[1756329523126,0.28749069,111960.0,111950.0,1.25037]
[1756329523628,0.28649069,111960.0,111950.0,1.25037]
[1756329524134,0.68002201,111960.0,111950.0,0.3608]
[1756329524434,0.68002201,111960.0,111950.0,1.25141]
[1756329524730,0.28649069,111960.0,111950.0,1.26833]
[1756329524932,0.29545357,111960.0,111950.0,1.26833]
[1756329531236,0.26980948,111960.0,111950.0,1.26833]
[1756329533343,0.6633408,111960.0,111950.0,1.26833]
[1756329534435,0.6633408,111960.0,111950.0,1.27045]
[1756329534937,0.26980948,111960.0,111950.0,1.27045]
[1756329535138,0.6633408,111960.0,111950.0,1.27045]
[1756329536038,0.6633408,111960.0,111950.0,1.25353]
[1756329536637,0.6633408,111960.0,111950.0,1.25313]
[1756329536942,0.6633408,111960.0,111950.0,0.41557]
[1756329537141,0.6633408,111960.0,111950.0,1.25297]
[1756329537349,0.6633408,111960.0,111950.0,1.26989]
[1756329537642,0.6633408,111960.0,111950.0,1.25297]
[1756329540234,0.93291791,111960.0,111950.0,0.001]
[1756329540435,0.93291791,111960.0,111950.0,0.0011]
[1756329540647,0.93291791,111960.0,111950.0,0.05348]
[1756329541433,0.53938659,111960.0,111950.0,0.0704]
[1756329541638,0.93512791,111960.0,111950.0,0.0704]
[1756329541935,0.93512791,111960.0,111950.0,0.05348]
[1756329542440,0.93512791,111960.0,111950.0,0.0011]
[1756329542639,0.93512791,111960.0,111950.0,0.0704]
[1756329542836,0.93512791,111960.0,111950.0,0.05348]
[1756329543441,0.93512791,111960.0,111950.0,0.41428]
[1756329544041,0.54159659,111960.0,111950.0,0.41428]
[1756329544344,0.93512791,111960.0,111950.0,0.41428]
[1756329546747,0.93512791,111960.0,111950.0,0.38252]
[1756329547041,0.93512791,111960.0,111950.0,0.0011]
[1756329547639,1.68945923,111960.0,111950.0,0.0011]
[1756329548546,1.7642324,111950.0,111940.0,0.0001]
[1756329548756,0.2642404,111940.0,111930.0,1.25341]
[1756329548941,0.65777172,111940.0,111930.0,1.25331]
[1756329549247,0.65777172,111940.0,111930.0,1.25387]
[1756329549743,0.65677172,111940.0,111930.0,1.25371]
[1756329549940,0.65677172,111940.0,111930.0,1.25571]
[1756329550248,0.65677172,111940.0,111930.0,0.41699]
[1756329550639,0.65677172,111940.0,111930.0,0.41799]
[1756329551035,0.65677172,111940.0,111930.0,0.3638]
[1756329551239,0.90677172,111940.0,111930.0,0.003]
[1756329551745,1.00279238,111940.0,111930.0,0.003]
[1756329552247,0.97714544,111940.0,111930.0,0.003]
[1756329553142,1.42325412,111940.0,111930.0,0.003]
[1756329553347,1.81678544,111940.0,111930.0,0.05719]
[1756329553548,1.81678544,111940.0,111930.0,0.02298]
[1756329553749,1.81678544,111940.0,111930.0,0.003]
[1756329555546,0.0893285,111930.0,111920.0,0.3621]
[1756329555741,0.0893285,111930.0,111910.0,1.20044]
[1756329555742,0.1954165,111920.0,111910.0,1.23414]
[1756329555945,0.58894782,111920.0,111910.0,1.23404]
[1756329556340,0.1954165,111920.0,111910.0,1.23404]
[1756329556646,0.21501275,111920.0,111910.0,1.23404]
[1756329556846,0.21301275,111920.0,111910.0,1.23404]
[1756329557148,0.21301275,111920.0,111910.0,1.23804]
[1756329557646,0.21301275,111920.0,111910.0,1.24104]
[1756329558042,0.21301275,111920.0,111910.0,1.63457132]
[1756329558640,0.21301275,111920.0,111910.0,1.24104]
[1756329559053,0.22205301,111920.0,111910.0,1.24104]
[1756329562646,0.14409301,111920.0,111910.0,1.24104]
[1756329562849,0.22205301,111920.0,111910.0,1.24104]
[1756329566951,0.25603301,111920.0,111910.0,1.27055]
[1756329567254,0.29089301,111920.0,111910.0,1.29367]
[1756329567454,0.29089301,111920.0,111910.0,1.29377]
[1756329567655,0.29089301,111920.0,111910.0,1.27485]
[1756329567854,0.29089301,111920.0,111910.0,0.42989]
[1756329568158,0.68442433,111920.0,111910.0,0.42569]
[1756329568348,0.93442433,111920.0,111910.0,0.3946]
[1756329568548,0.93442433,111920.0,111910.0,0.0071]
[1756329570049,0.93442433,111920.0,111910.0,0.0031]
[1756329570354,0.93442433,111920.0,111910.0,0.0051]
[1756329570556,0.93442433,111920.0,111910.0,0.0031]
[1756329570857,0.93642433,111920.0,111910.0,0.0031]
[1756329571056,0.93642433,111920.0,111910.0,0.0011]
[1756329571754,0.93642433,111920.0,111910.0,0.0001]
[1756329571755,1.32285354,111920.0,111910.0,0.0001]
[1756329571956,2.16913354,111920.0,111910.0,0.0001]
[1756329572254,0.2599542,111910.0,111900.0,0.0001]
[1756329572446,0.27959997,111900.0,111890.0,0.03421]
[1756329572649,1.0595605,111900.0,111890.0,0.05975]
[1756329573049,0.0893602,111890.0,111880.0,1.21692]
[1756329573256,0.65250152,111890.0,111880.0,1.26497]
[1756329573453,0.65250152,111890.0,111880.0,1.28389]
[1756329573849,0.65250152,111890.0,111880.0,1.26497]
[1756329574555,0.2589702,111890.0,111880.0,1.28389]
[1756329575355,0.2599702,111890.0,111880.0,1.28389]
[1756329575655,0.65350152,111890.0,111880.0,1.28389]
[1756329575851,0.2599702,111890.0,111880.0,0.42065]
[1756329576056,0.2599702,111890.0,111880.0,0.43957]
[1756329576249,0.2269102,111890.0,111880.0,0.83310132]
[1756329576556,0.2599702,111890.0,111880.0,0.43957]
[1756329577252,0.001,111890.0,111880.0,1.17246962]
[1756329577453,0.0903603,111890.0,111880.0,1.17246962]
[1756329577752,0.0537,111910.0,111900.0,0.1671223]
[1756329577953,0.2268943,111910.0,111900.0,0.43857]
[1756329578153,0.65348562,111910.0,111900.0,0.8011]
[1756329578353,0.65348562,111910.0,111900.0,0.78956]
[1756329578552,0.0893522,111900.0,111890.0,1.26555]
[1756329578760,0.1917522,111900.0,111890.0,1.28337]
[1756329578952,0.1907522,111900.0,111890.0,1.28337]
[1756329579353,0.06821,111900.0,111890.0,1.28337]
[1756329579548,0.1377522,111900.0,111890.0,1.3727302]
[1756329579857,0.0913522,111900.0,111890.0,1.92690132]
[1756329580058,0.0943522,111900.0,111890.0,1.92690132]
[1756329580960,0.0943522,111900.0,111890.0,2.01626152]
[1756329581357,0.0893485,111910.0,111900.0,0.2031615]
[1756329581551,0.0893485,111910.0,111900.0,1.80189282]
[1756329581752,0.0893485,111910.0,111900.0,1.80189352]
[1756329581953,0.0893485,111910.0,111900.0,0.86814132]
[1756329582156,0.1496085,111910.0,111900.0,1.31889]
[1756329582362,0.2599585,111910.0,111900.0,1.31973]
[1756329582656,0.2599585,111910.0,111900.0,0.47461]
[1756329582657,0.2659585,111910.0,111900.0,0.47461]
[1756329582857,0.2659585,111910.0,111900.0,1.31973]
[1756329583357,0.2040085,111910.0,111900.0,1.31973]
[1756329583558,0.0953485,111910.0,111900.0,1.71326132]
[1756329583762,0.0953485,111910.0,111900.0,1.96326132]
[1756329584148,0.0953485,111910.0,111900.0,2.05261352]
[1756329584953,0.0953485,111910.0,111900.0,0.72461]
[1756329585160,0.0953485,111910.0,111900.0,1.96338132]
[1756329585355,0.0953485,111910.0,111900.0,2.05273352]
[1756329585660,0.1650285,111930.0,111920.0,0.05121]
[1756329585953,0.19053612,111930.0,111920.0,0.80554132]
[1756329586155,0.29477793,111930.0,111920.0,0.41201]
[1756329586366,0.68830925,111930.0,111920.0,1.24805]
[1756329586762,0.69230925,111930.0,111920.0,1.24805]
[1756329587864,0.69430925,111930.0,111920.0,1.24805]
[1756329589464,0.66870163,111930.0,111920.0,1.24805]
[1756329590164,0.27517031,111930.0,111920.0,1.25717]
[1756329590369,0.66870163,111930.0,111920.0,1.24749]
[1756329590861,0.27517031,111930.0,111920.0,1.25661]
[1756329591061,0.66870163,111930.0,111920.0,0.40299]
[1756329591265,0.66870163,111930.0,111920.0,0.41211]
[1756329591469,0.66870163,111930.0,111920.0,1.25671]
[1756329591761,0.91870163,111930.0,111920.0,0.0001]
[1756329591968,0.2599462,111920.0,111910.0,0.0001]
[1756329592266,0.2599622,111900.0,111890.0,0.8452]
[1756329592461,0.65349352,111900.0,111890.0,0.8452]
[1756329592661,0.65349352,111900.0,111890.0,0.86212]
[1756329592856,0.65349352,111900.0,111890.0,1.23349]
[1756329593262,0.65349352,111900.0,111890.0,1.23381]
[1756329593463,0.65349352,111900.0,111890.0,1.23781]
[1756329594656,0.65349352,111900.0,111890.0,1.23881]
[1756329595167,0.65349352,111900.0,111890.0,1.23581]
[1756329595366,0.65349352,111900.0,111890.0,0.38981]
[1756329595568,0.65349352,111900.0,111890.0,1.23473]
[1756329596367,0.65349352,111900.0,111890.0,0.87393]
[1756329596569,0.65349352,111900.0,111890.0,0.88853]
[1756329597258,0.65349352,111900.0,111890.0,0.88777]
[1756329597666,0.2599622,111900.0,111890.0,1.24857]
[1756329598566,0.2599622,111900.0,111890.0,0.40441]
[1756329598768,1.7599622,111900.0,111890.0,1.24857]
[1756329599271,2.15349352,111900.0,111890.0,1.24857]
[1756329599672,2.15349352,111900.0,111890.0,1.24809]
[1756329600368,2.40349352,111900.0,111890.0,1.24809]
[1756329602668,1.7269022,111900.0,111890.0,1.25721]
[1756329602875,1.7136722,111900.0,111890.0,1.25721]
[1756329603468,1.7136722,111900.0,111890.0,1.24809]
[1756329603670,2.15369352,111900.0,111890.0,1.24729]
[1756329604776,2.40369352,111900.0,111890.0,0.3618]
[1756329604971,2.40369352,111900.0,111890.0,1.21719]
[1756329605172,2.15369352,111900.0,111890.0,1.21719]
[1756329606271,2.15369352,111900.0,111890.0,1.25025]
[1756329607779,1.7601622,111900.0,111890.0,1.25017]
[1756329608176,2.15369352,111900.0,111890.0,1.25017]
[1756329608379,2.15369352,111900.0,111890.0,1.25273]
[1756329611285,1.7601622,111900.0,111890.0,1.25273]
[1756329611482,2.15369352,111900.0,111890.0,1.25283]
[1756329611982,2.15369352,111900.0,111890.0,0.39588]
[1756329612282,2.15369352,111900.0,111890.0,0.89095]
[1756329613684,2.10803352,111900.0,111890.0,0.87635]
[1756329617789,1.7145022,111900.0,111890.0,0.87635]
[1756329618184,1.7145022,111900.0,111890.0,0.87615]
[1756329618185,2.10803352,111900.0,111890.0,0.87615]
[1756329618390,2.10803352,111900.0,111890.0,0.87635]
[1756329619089,1.7145022,111900.0,111890.0,1.63068132]
[1756329619287,1.7145022,111900.0,111890.0,1.23715]
[1756329620191,2.10803352,111900.0,111890.0,0.39203]
[1756329620390,2.10803352,111900.0,111890.0,1.23463]
[1756329620781,2.10803352,111900.0,111890.0,1.22324]
[1756329620983,2.10803352,111900.0,111890.0,1.23463]
[1756329621177,1.7145022,111900.0,111890.0,0.39203]
[1756329621384,2.10803352,111900.0,111890.0,1.23439]
[1756329621793,2.10803352,111900.0,111890.0,0.39203]
[1756329621990,2.10803352,111900.0,111890.0,1.23447]
[1756329626094,2.12796293,111900.0,111890.0,0.84238]
[1756329626299,2.12796293,111900.0,111890.0,0.87219]
[1756329626887,0.23443161,111900.0,111890.0,1.62684132]
[1756329627286,2.12796293,111900.0,111890.0,0.39203]
[1756329627485,2.12796293,111900.0,111890.0,1.23295]
[1756329627687,1.73443161,111900.0,111890.0,1.23295]
[1756329631092,0.1393822,111900.0,111890.0,1.71584152]
[1756329631317,0.0893522,111900.0,111890.0,1.96584152]
[1756329631599,1.5895494,111910.0,111900.0,0.1166222]
[1756329631796,0.0893494,111910.0,111900.0,0.87105352]
[1756329632594,0.0788594,111910.0,111900.0,1.12105352]
[1756329633202,0.10929141,111920.0,111910.0,0.0893442]
[1756329633493,0.10909141,111920.0,111910.0,1.68473552]
[1756329633796,0.01975061,111920.0,111910.0,1.93473552]
[1756329634092,0.0893362,111920.0,111910.0,1.93445032]
[1756329635597,0.0893362,111920.0,111910.0,1.93545032]
[1756329635996,1.5895344,111930.0,111920.0,0.0893362]
[1756329636196,0.0002,111940.0,111930.0,0.0893283]
[1756329636393,0.0895123,111950.0,111940.0,0.0893203]
[1756329636596,0.0892123,111950.0,111940.0,0.75433132]
[1756329636804,0.0892123,111950.0,111940.0,0.6108]
[1756329637099,0.0892123,111950.0,111940.0,1.84517132]
[1756329637405,0.0892123,111950.0,111940.0,1.93449162]
[1756329637594,0.0912123,111950.0,111940.0,1.93584007]
[1756329637901,0.0912123,111950.0,111940.0,1.84651977]
[1756329638101,0.0892123,111950.0,111940.0,1.84651977]
[1756329638299,0.0912123,111950.0,111940.0,1.84651977]
[1756329639002,0.0912123,111950.0,111940.0,1.93583997]
[1756329639207,0.1321623,111950.0,111940.0,1.59647977]
[1756329639501,0.1823723,111950.0,111940.0,0.3608]
[1756329639692,0.2151823,111950.0,111940.0,1.20108]
[1756329640092,0.2151823,111950.0,111940.0,1.59595977]
[1756329640398,0.0922123,111950.0,111940.0,1.68527997]
[1756329641302,0.0922123,111950.0,111940.0,0.75567977]
[1756329641503,0.0922123,111950.0,111940.0,1.59579977]
[1756329641504,0.2151823,111950.0,111940.0,1.59579977]
[1756329642506,0.2141823,111950.0,111940.0,1.59579977]
[1756329642804,0.1732323,111950.0,111940.0,1.59579977]
[1756329643105,0.2131823,111950.0,111940.0,1.59579977]
[1756329643404,0.0922123,111950.0,111940.0,1.68511997]
[1756329643600,0.0922123,111950.0,111940.0,1.20108]
[1756329643601,0.2161823,111950.0,111940.0,1.20108]
[1756329643909,0.2161823,111950.0,111940.0,1.59595977]
[1756329644607,0.2161823,111950.0,111940.0,1.20104]
[1756329644801,0.2161823,111950.0,111940.0,1.59591977]
[1756329645405,0.2141823,111950.0,111940.0,1.59591977]
[1756329646312,0.2151823,111950.0,111940.0,1.68524007]
[1756329646509,0.1742323,111950.0,111940.0,1.68524007]
[1756329646701,0.0922123,111950.0,111940.0,0.84500007]
[1756329646896,0.0922123,111950.0,111940.0,1.68464007]
[1756329647505,0.1250223,111950.0,111940.0,1.68464007]
[1756329647708,0.2151823,111950.0,111940.0,0.3608]
[1756329648010,0.2151823,111950.0,111940.0,1.59519977]
[1756329648902,0.1188523,111950.0,111940.0,1.68451997]
[1756329649802,0.0922123,111950.0,111940.0,1.68451997]
[1756329650003,0.002,111950.0,111940.0,1.93451997]
[1756329651109,0.002,111950.0,111940.0,1.93379997]
[1756329652519,0.1386142,111960.0,111950.0,0.0893122]
[1756329652708,0.1385142,111960.0,111950.0,0.84499197]
[1756329652907,0.0893042,111960.0,111950.0,0.4501122]
[1756329653113,0.0893042,111960.0,111950.0,0.84499197]
[1756329653706,0.0903042,111960.0,111950.0,0.84499197]
[1756329653902,0.0903042,111960.0,111950.0,1.48987174]
[1756329653903,0.001,111960.0,111950.0,1.48987174]
[1756329654105,0.0001,111970.0,111950.0,1.48987174]
[1756329654106,0.0892857,111990.0,111980.0,0.0892883]
[1756329654412,0.1630457,111990.0,111980.0,2.04412807]
[1756329655415,0.0932857,111990.0,111980.0,2.04412807]
[1756329655617,0.0932857,111990.0,111980.0,2.04422807]
[1756329655812,0.0992857,111990.0,111980.0,2.04422807]
[1756329657816,0.1320957,111990.0,111980.0,1.6493483]
[1756329658112,0.0992857,111990.0,111980.0,1.20586807]
[1756329658312,0.01,111990.0,111980.0,2.04386807]
[1756329659511,0.0992803,111990.0,111980.0,1.20586807]
[1756329659812,0.0992803,111990.0,111980.0,2.04378807]
[1756329660317,0.01,111990.0,111980.0,2.04378807]
[1756329661015,0.0001,112010.0,111990.0,0.0892803]
[1756329661206,0.0892618,112020.0,112010.0,0.0892643]
[1756329661406,0.1638239,112030.0,112020.0,0.0892564]
[1756329661615,0.23828422,112030.0,112020.0,1.59355977]
[1756329661813,0.48828422,112030.0,112020.0,1.59355977]
[1756329662517,0.30108078,112030.0,112020.0,1.59355977]
[1756329662720,0.39033298,112030.0,112020.0,1.66574977]
[1756329663021,0.40133298,112030.0,112020.0,1.66674977]
[1756329663616,0.40133298,112030.0,112020.0,1.27187]
[1756329664020,0.40133298,112030.0,112020.0,1.75600607]
[1756329664220,0.43017298,112030.0,112020.0,0.87854977]
[1756329664418,0.82505275,112030.0,112020.0,1.28234]
[1756329664614,0.89962275,112030.0,112020.0,1.28234]
[1756329664816,0.89962275,112030.0,112020.0,1.32155]
[1756329665118,0.88262275,112030.0,112020.0,1.32155]
[1756329665314,0.88262275,112030.0,112020.0,0.48367]
[1756329665513,0.11484252,112030.0,112020.0,1.71626977]
[1756329665713,0.11484252,112030.0,112020.0,1.32139]
[1756329666016,0.11484252,112030.0,112020.0,1.71572599]
[1756329666420,0.11484252,112030.0,112020.0,1.32139]
[1756329666719,0.18941252,112030.0,112020.0,1.71572599]
[1756329666927,0.11484252,112030.0,112020.0,1.71572599]
[1756329667419,0.1638222,112030.0,112020.0,1.71572599]
[1756329667827,0.1638222,112030.0,112020.0,1.32139]
[1756329668015,0.1638222,112030.0,112020.0,1.71572599]
[1756329669420,0.2126922,112030.0,112020.0,1.71872599]
[1756329669620,0.1152822,112030.0,112020.0,1.71872599]
[1756329670421,0.1898522,112030.0,112020.0,1.71872599]
[1756329671617,0.2126922,112030.0,112020.0,1.32463]
[1756329672314,0.1381222,112030.0,112020.0,0.87800599]
[1756329672512,0.2126922,112030.0,112020.0,1.32459]
[1756329672717,0.2126922,112030.0,112020.0,1.71892599]
[1756329673322,0.2126922,112030.0,112020.0,1.32447]
[1756329673822,0.90535819,112030.0,112020.0,1.30569]
[1756329674028,0.90535819,112030.0,112020.0,1.33879]
[1756329674316,0.93090569,112030.0,112020.0,0.3618]
[1756329674517,0.93090569,112030.0,112020.0,0.74904]
[1756329674924,0.1566762,112020.0,112010.0,0.3608]
[1756329675123,0.6808974,112020.0,112010.0,1.20132]
[1756329675416,0.2610343,112010.0,112000.0,0.3608]
[1756329675616,0.6809055,112010.0,112000.0,0.3608]
[1756329675823,0.6809055,112010.0,112000.0,1.20128]
[1756329676116,0.6809055,112010.0,112000.0,0.3608]
[1756329676318,0.2610422,112000.0,111990.0,1.32347]
[1756329676527,0.65537819,112000.0,111990.0,1.32347]
[1756329676928,0.2610502,111990.0,111980.0,0.38272]
[1756329677119,0.68093527,111990.0,111980.0,1.32327]
[1756329677319,0.74922318,111990.0,111980.0,1.2843]
[1756329677520,0.28659928,111990.0,111980.0,1.32339]
[1756329678221,1.00322318,111990.0,111980.0,0.84072]
[1756329678428,1.00422318,111990.0,111980.0,0.9235]
[1756329678624,0.54159928,111990.0,111980.0,0.9235]
[1756329678930,0.54059928,111990.0,111980.0,0.96259]
[1756329679927,0.54159928,111990.0,111980.0,0.97719]
[1756329680225,0.54159928,111990.0,111980.0,0.97729]
[1756329680826,0.53859928,111990.0,111980.0,0.97729]
[1756329681130,0.54159928,111990.0,111980.0,0.97729]
[1756329682925,1.36602318,111990.0,111980.0,0.8417]
[1756329683326,1.36602318,111990.0,111980.0,0.9244]
[1756329684132,1.36602318,111990.0,111980.0,0.8913]
[1756329684332,0.2610649,111980.0,111970.0,0.08887]
[1756329684634,0.74923788,111980.0,111970.0,0.8916]
[1756329685430,0.0893029,111970.0,111960.0,0.39999]
[1756329685632,0.76931633,111970.0,111960.0,0.89124]
[1756329685929,0.77843304,111970.0,111960.0,0.89124]
[1756329686332,0.77843304,111970.0,111950.0,0.43309]
[1756329686333,0.2610809,111960.0,111950.0,0.48277]
[1756329686530,0.2610809,111960.0,111950.0,1.33875]
[1756329687122,0.33278504,111960.0,111950.0,1.33875]
[1756329687833,0.33278504,111960.0,111950.0,1.33975]
[1756329688428,0.33478504,111960.0,111950.0,1.34887]
[1756329688631,0.33478504,111960.0,111950.0,1.33975]
[1756329688833,0.33478504,111960.0,111950.0,1.34887]
[1756329689129,0.33478504,111960.0,111950.0,1.34787]
[1756329689334,0.33578504,111960.0,111950.0,1.34787]
[1756329689534,0.33578504,111960.0,111950.0,1.33875]
[1756329691341,0.33578504,111960.0,111950.0,0.97795]
[1756329691732,0.33578504,111960.0,111950.0,0.97887]
[1756329692037,0.2604393,111950.0,111940.0,0.02225]
[1756329692232,1.10407698,111950.0,111940.0,0.86303]
[1756329692432,1.35407698,111950.0,111940.0,0.84088]
[1756329692935,0.2604473,111940.0,111930.0,0.0001]
[1756329693133,0.0893353,111930.0,111920.0,1.13912]
[1756329693331,0.6548092,111930.0,111920.0,1.13902]
[1756329693834,0.66363339,111930.0,111920.0,1.13902]
[1756329694135,0.20100949,111930.0,111920.0,1.13902]
[1756329694334,0.20100949,111930.0,111920.0,1.14002]
[1756329694530,0.20100949,111930.0,111920.0,0.04944]
[1756329694531,0.28905638,111930.0,111920.0,0.04944]
[1756329694732,0.75168028,111930.0,111920.0,0.86435]
[1756329695134,0.75168028,111930.0,111920.0,0.96358]
[1756329695930,0.75068028,111930.0,111920.0,0.96358]
[1756329696132,0.75068028,111930.0,111920.0,0.92466]
[1756329696332,0.75068028,111930.0,111920.0,0.08346]
[1756329696533,1.11148028,111930.0,111920.0,0.08446]
[1756329698035,2.20216028,111930.0,111920.0,1e-07]
[1756329698231,1.36148028,111930.0,111920.0,1e-07]
[1756329698436,2.20208028,111930.0,111920.0,1e-07]
[1756329699842,2.20160028,111930.0,111920.0,1e-07]
[1756329700342,2.22694674,111930.0,111920.0,1e-07]
[1756329701439,2.22698674,111930.0,111920.0,1e-07]
[1756329702339,0.67420284,111930.0,111920.0,0.1359801]
[1756329702542,0.31340284,111930.0,111920.0,0.1451001]
[1756329702743,0.31340284,111930.0,111920.0,0.1359801]
[1756329703740,0.23916284,111930.0,111920.0,0.9877401]
[1756329704044,0.28805638,111930.0,111920.0,1.3486401]
[1756329704242,0.23920655,111930.0,111920.0,1.3486401]
[1756329704541,0.23920655,111930.0,111920.0,0.9878401]
[1756329705238,0.27345655,111930.0,111920.0,0.9878401]
[1756329705634,0.31344655,111930.0,111920.0,0.9878401]
[1756329705837,0.23038236,111930.0,111920.0,0.9878401]
[1756329706044,0.18817236,111930.0,111920.0,1.3486401]
[1756329706435,0.16211236,111930.0,111920.0,1.5986401]
[1756329707037,0.10811219,111930.0,111920.0,2.061264]
[1756329708048,0.13672219,111930.0,111920.0,2.061264]
[1756329708935,0.13672219,111930.0,111920.0,1.5986401]
[1756329709139,0.13672219,111930.0,111920.0,2.061264]
[1756329709334,0.13672219,111930.0,111920.0,1.99372687]
[1756329711039,0.07311219,111930.0,111920.0,1.99372687]
[1756329711248,0.10911219,111930.0,111920.0,1.99372687]
[1756329712245,0.13458784,111930.0,111920.0,1.99372687]
[1756329712546,0.0893353,111930.0,111920.0,2.08307047]
[1756329713249,0.0893353,111930.0,111920.0,1.83307047]
[1756329714542,0.02871,111940.0,111930.0,0.07433]
[1756329714543,0.1180447,111940.0,111930.0,0.07433]
[1756329714749,0.1180447,111940.0,111930.0,0.93425237]
[1756329714750,0.11483323,111940.0,111930.0,0.93425237]
[1756329715345,0.14344323,111940.0,111930.0,0.93425237]
[1756329715549,0.14344323,111940.0,111930.0,1.68679677]
[1756329716143,0.14344323,111940.0,111930.0,1.29171]
[1756329716346,0.14344323,111940.0,111930.0,1.68679677]
[1756329716548,0.21171323,111940.0,111930.0,1.29167]
[1756329716748,0.24596323,111940.0,111930.0,1.29167]
[1756329717151,0.28595323,111940.0,111930.0,1.28227]
[1756329717750,0.28595323,111940.0,111930.0,1.29139]
[1756329718646,0.28595323,111940.0,111930.0,1.29143]
[1756329719458,0.14344323,111940.0,111930.0,1.29143]
[1756329719754,0.14344323,111940.0,111930.0,1.68651677]
[1756329720147,0.22450323,111940.0,111930.0,0.44983]
[1756329720353,0.14344323,111940.0,111930.0,1.68735677]
[1756329720556,0.14344323,111940.0,111930.0,1.77669247]
[1756329721369,0.14344323,111940.0,111930.0,1.77657247]
[1756329721876,0.11483323,111940.0,111930.0,1.77657247]
[1756329722562,0.14215323,111940.0,111930.0,1.77657247]
[1756329722980,0.02549853,111940.0,111930.0,2.02657247]
[1756329723164,0.02549853,111940.0,111930.0,1.18425247]
[1756329723365,0.0893277,111940.0,111930.0,2.02677247]
[1756329723567,0.14221117,111940.0,111930.0,1.93743677]
[1756329724069,0.14221117,111940.0,111930.0,1.18425247]
[1756329724267,0.14221117,111940.0,111930.0,2.02677247]
[1756329724672,0.16807117,111940.0,111930.0,0.84491677]
[1756329724868,0.28124117,111940.0,111930.0,1.28303]
[1756329725171,0.28124117,111940.0,111930.0,1.28279]
[1756329725172,0.67632794,111940.0,111930.0,1.28279]
[1756329725368,0.24326117,111940.0,111930.0,1.29191]
[1756329725568,0.20910117,111940.0,111930.0,1.29191]
[1756329726171,0.28124117,111940.0,111930.0,0.44071]
[1756329726477,0.28124117,111940.0,111930.0,1.28299]
[1756329727670,0.28124117,111940.0,111930.0,1.29211]
[1756329730377,0.28124117,111940.0,111930.0,0.44983]